fUSD/lending_fUSD_20240801
["ID","MTS","AMOUNT","RATE_DAILY","PERIOD"]
[333802586,1722521211805,-500.0,0.00043835,60]
[333802587,1722521211848,-565.47,0.00043835,60]
[333802588,1722521211890,-500.0,0.00043835,60]
[333802589,1722521211933,-500.0,0.00043835,60]
[333802590,1722521211974,-746.26,0.00043835,60]
[333802591,1722521212015,-500.0,0.00043835,60]
[333802592,1722521212058,-7204.13,0.00043835,60]
[333802593,1722521212101,-758.1,0.00043835,60]
[333802594,1722521212144,-500.0,0.00043835,60]
[333802595,1722521212188,-652.85,0.00043835,60]
[333802596,1722521212230,-500.0,0.00043835,60]
[333802597,1722521212271,-638.89,0.00043835,60]
[333802598,1722521212312,-819.4,0.00043835,60]
[333802599,1722521212355,-635.73250202,0.00043835,60]
[333802600,1722521212395,-500.0,0.00043835,60]
[333802601,1722521212436,-512.64,0.00043835,60]
[333802602,1722521212480,-500.0,0.00043835,60]
[333802603,1722521212521,-3686.88,0.00043835,60]
[333802604,1722521212562,-500.0,0.00043835,60]
[333802605,1722521212606,-1242.07,0.00043835,60]
[333802606,1722521212648,-14820.78,0.00043835,60]
[333802607,1722521212689,-2440.21,0.00043835,60]
[333802608,1722521212735,-500.0,0.00043835,60]
[333802609,1722521212776,-1879.86,0.00043835,60]
[333802610,1722521212819,-500.0,0.00043835,60]
[333802611,1722521212860,-5508.11,0.00043835,60]
[333802612,1722521212900,-3066.11,0.00043835,60]
[333802613,1722521212941,-5180.1,0.00043835,60]
[333802614,1722521212982,-500.0,0.00043835,60]
[333802615,1722521213021,-7820.74,0.00043835,60]
[333802616,1722521213062,-500.0,0.00043835,60]
[333802617,1722521213101,-500.0,0.00043835,60]
[333802618,1722521213140,-914.1,0.00043835,60]
[333802619,1722521213179,-500.0,0.00043835,60]
[333802620,1722521213217,-500.0,0.00043835,60]
[333802621,1722521213256,-696.93,0.00043835,60]
[333802622,1722521213297,-922.07,0.00043835,60]
[333802623,1722521213338,-1454.42,0.00043835,60]
[333802624,1722521213380,-902.63,0.00043835,60]
[333802625,1722521213422,-742.29,0.00043835,60]
[333802626,1722521213467,-544.82,0.00043835,60]
[333802627,1722521213509,-500.0,0.00043835,60]
[333802628,1722521213550,-500.0,0.00043835,60]
[333802629,1722521213592,-161.22348079,0.00043835,60]
[333802630,1722521213632,-622.69,0.00043835,60]
[333802631,1722521213670,-3944.11,0.00043835,60]
[333802632,1722521213712,-1294.1,0.00043835,60]
[333802633,1722521213752,-21848.1,0.00043835,60]
[333802634,1722521213793,-1591.21,0.00043835,60]
[333802635,1722521213834,-8292.52,0.00043835,60]
[333802636,1722521213877,-500.0,0.00043835,60]
[333802637,1722521213920,-500.0,0.00043835,60]
[333802638,1722521213966,-21225.0,0.00043835,60]
[333802639,1722521214006,-500.0,0.00043835,30]
[333802640,1722521214048,-464.95768311,0.00043835,30]
[333802641,1722521214092,-6778.2,0.00043835,60]
[333802642,1722521214135,-721.58,0.00043835,60]
[333802643,1722521214180,-500.0,0.00043835,60]
[333802644,1722521214223,-5772.51,0.00043835,60]
[333802645,1722521214264,-3184.08,0.00043835,60]
[333802646,1722521214307,-500.0,0.00043835,60]
[333802647,1722521214349,-500.0,0.00043835,60]
[333802648,1722521214393,-2559.9,0.00043835,60]
[333802649,1722521214434,-2380.23,0.00043835,60]
[333802650,1722521214476,-500.0,0.00043835,60]
[333802651,1722521214519,-10751.0,0.00043835,60]
[333802652,1722521214562,-5257.5,0.00043835,60]
[333802653,1722521214604,-1297.52,0.00043835,60]
[333802654,1722521214644,-20961.5,0.00043835,60]
[333802655,1722521214686,-963.22,0.00043835,60]
[333802656,1722521214731,-12573.59,0.00043835,60]
[333802657,1722521214775,-239.34955153,0.00043835,60]
[333802658,1722521214815,-500.0,0.00043835,60]
[333802659,1722521214855,-500.0,0.00043835,60]
[333802660,1722521214898,-500.0,0.00043835,60]
[333802661,1722521214939,-500.0,0.00043835,60]
[333802662,1722521214982,-504.77,0.00043835,60]
[333802663,1722521215023,-2764.85,0.00043835,60]
[333802664,1722521215067,-6346.93,0.00043835,60]
[333802665,1722521215109,-3504.06,0.00043835,60]
[333802666,1722521215154,-500.0,0.00043835,60]
[333802667,1722521215195,-3382.85,0.00043835,60]
[333802668,1722521215240,-500.0,0.00043835,60]
[333802669,1722521215284,-5106.35,0.00043835,60]
[333802670,1722521215327,-500.0,0.00043835,60]
[333802671,1722521215369,-500.0,0.00043835,60]
[333802672,1722521215413,-2613.3,0.00043835,60]
[333802673,1722521215456,-1631.12,0.00043835,60]
[333802674,1722521215501,-500.0,0.00043835,60]
[333802675,1722521215546,-500.0,0.00043835,60]
[333802676,1722521215592,-3881.18,0.00043835,60]
[333802677,1722521215636,-985.4,0.00043835,60]
[333802678,1722521215683,-509.10905733,0.00043835,60]
[333802679,1722521215731,-3665.08,0.00043835,60]
[333802680,1722521215773,-4261.02,0.00043835,60]
[333802681,1722521215816,-500.0,0.00043835,60]
[333802682,1722521215857,-500.0,0.00043835,60]
[333802683,1722521215901,-1344.18,0.00043835,60]
[333802684,1722521215943,-500.0,0.00043835,60]
[333802685,1722521215988,-583.52,0.00043835,60]
[333802686,1722521216327,-697.69,0.00043835,60]
[333802687,1722521216370,-2219.96,0.00043835,60]
[333802688,1722521216414,-2921.24,0.00043835,60]
[333802689,1722521216457,-500.0,0.00043835,60]
[333802690,1722521216501,-563.69,0.00043835,60]
[333802691,1722521216542,-4137.28,0.00043835,60]
[333802692,1722521216582,-2201.7,0.00043835,60]
[333802693,1722521216622,-500.0,0.00043835,60]
[333802694,1722521216662,-6879.47,0.00043835,60]
[333802695,1722521216704,-556.74,0.00043835,60]
[333802696,1722521216749,-565.88,0.00043835,60]
[333802697,1722521216793,-1469.9,0.00043835,60]
[333802698,1722521216835,-500.0,0.00043835,60]
[333802699,1722521216877,-701.38,0.00043835,60]
[333802700,1722521216919,-500.0,0.00043835,60]
[333802701,1722521216959,-500.0,0.00043835,60]
[333802702,1722521217013,-500.0,0.00043835,60]
[333802703,1722521217063,-616.2689651,0.00043835,60]
[333802704,1722521217107,-2057.08,0.00043835,60]
[333802705,1722521217149,-1749.23,0.00043835,60]
[333802706,1722521217193,-500.0,0.00043835,60]
[333802707,1722521217236,-500.0,0.00043835,60]
[333802708,1722521217283,-500.0,0.00043835,60]
[333802709,1722521217325,-3516.49,0.00043835,60]
[333802710,1722521217368,-500.0,0.00043835,60]
[333802711,1722521217412,-821.28,0.00043835,60]
[333802712,1722521217457,-639.28,0.00043835,60]
[333802713,1722521217503,-500.0,0.00043835,60]
[333802714,1722521217549,-500.0,0.00043835,60]
[333802715,1722521217593,-500.0,0.00043835,60]
[333802716,1722521217640,-526.42,0.00043835,60]
[333802717,1722521217687,-1195.09,0.00043835,60]
[333802718,1722521217735,-618.11,0.00043835,60]
[333802719,1722521217779,-657.9,0.00043835,60]
[333802720,1722521217824,-23573.31,0.00043835,60]
[333802721,1722521217866,-1030.48,0.00043835,60]
[333802722,1722521217911,-8886.08,0.00043835,60]
[333802723,1722521217954,-3616.03,0.00043835,60]
[333802724,1722521218001,-6996.62,0.00043835,60]
[333802725,1722521218044,-500.0,0.00043835,60]
[333802726,1722521218087,-500.0,0.00043835,60]
[333802727,1722521218130,-804.82,0.00043835,60]
[333802728,1722521218175,-1633.83,0.00043835,60]
[333802729,1722521218227,-500.0,0.00043835,60]
[333802730,1722521218277,-500.0,0.00043835,60]
[333802731,1722521218325,-3100.77,0.00043835,60]
[333802732,1722521218370,-500.0,0.00043835,60]
[333802733,1722521218416,-511.95748234,0.00043835,60]
[333802734,1722521218465,-1657.19,0.00043835,60]
[333802735,1722521218510,-6069.86,0.00043835,60]
[333802736,1722521218554,-2759.03,0.00043835,60]
[333802737,1722521218598,-500.0,0.00043835,60]
[333802738,1722521218643,-5117.65,0.00043835,60]
[333802739,1722521218685,-500.0,0.00043835,60]
[333802740,1722521218732,-500.0,0.00043835,60]
[333802741,1722521218780,-500.0,0.00043835,60]
[333802742,1722521218824,-13766.06,0.00043835,60]
[333802743,1722521218867,-66253.06,0.00043835,60]
[333802744,1722521218912,-1806.75,0.00043835,60]
[333802745,1722521218956,-500.0,0.00043835,60]
[333802746,1722521219001,-500.0,0.00043835,60]
[333802747,1722521219045,-500.0,0.00043835,60]
[333802748,1722521219087,-500.0,0.00043835,60]
[333802749,1722521219129,-625.18485104,0.00043835,60]
[333802750,1722521219172,-5859.65,0.00043835,60]
[333802751,1722521219217,-2785.34,0.00043835,60]
[333802752,1722521219259,-4023.98,0.00043835,60]
[333802753,1722521219299,-1024.74,0.00043835,60]
[333802754,1722521219340,-500.0,0.00043835,60]
[333802755,1722521219380,-1412.02,0.00043835,60]
[333802756,1722521219423,-500.0,0.00043835,60]
[333802757,1722521219468,-500.0,0.00043835,60]
[333802758,1722521219510,-500.0,0.00043835,60]
[333802759,1722521219551,-502.66,0.00043835,60]
[333802760,1722521219593,-500.0,0.00043835,60]
[333802761,1722521219635,-500.0,0.00043835,60]
[333802762,1722521219676,-500.0,0.00043835,60]
[333802763,1722521219725,-1839.48,0.00043835,60]
[333802764,1722521219768,-3337.98,0.00043835,60]
[333802765,1722521219813,-500.0,0.00043835,60]
[333802766,1722521219856,-2242.17,0.00043835,60]
[333802767,1722521219898,-500.0,0.00043835,60]
[333802768,1722521219939,-500.0,0.00043835,60]
[333802769,1722521219984,-2339.82,0.00043835,60]
[333802770,1722521220031,-8527.06,0.00043835,60]
[333802771,1722521220078,-500.0,0.00043835,60]
[333802772,1722521220125,-500.0,0.00043835,60]
[333802773,1722521220180,-500.0,0.00043835,60]
[333802774,1722521220232,-500.65742833,0.00043835,60]
[333802775,1722521220279,-1048.93,0.00043835,60]
[333802776,1722521220325,-571.87,0.00043835,60]
[333802777,1722521220371,-531.62,0.00043835,60]
[333802778,1722521220421,-963.34,0.00043835,60]
[333802779,1722521220472,-1832.78,0.00043835,60]
[333802780,1722521220518,-500.0,0.00043835,60]
[333802781,1722521220564,-500.0,0.00043835,60]
[333802782,1722521220612,-500.0,0.00043835,60]
[333802783,1722521220659,-500.0,0.00043835,60]
[333802784,1722521220706,-500.0,0.00043835,60]
[333802785,1722521220752,-2851.12,0.00043835,60]
[333802786,1722521220797,-831.62,0.00043835,60]
[333802787,1722521220839,-582.24,0.00043835,60]
[333802788,1722521220880,-1370.83,0.00043835,60]
[333802789,1722521220922,-500.0,0.00043835,60]
[333802790,1722521220968,-861.35,0.00043835,60]
[333802791,1722521221290,-500.0,0.00043835,60]
[333802792,1722521221335,-1714.62,0.00043835,60]
[333802793,1722521221377,-1086.18,0.00043835,60]
[333802794,1722521221421,-500.0,0.00043835,60]
[333802795,1722521221466,-500.0,0.00043835,60]
[333802796,1722521221513,-1206.14,0.00043835,60]
[333802797,1722521221557,-1421.39,0.00043835,60]
[333802798,1722521221602,-857.57,0.00043835,60]
[333802799,1722521221645,-500.0,0.00043835,60]
[333802800,1722521221688,-514.3,0.00043835,60]
[333802801,1722521221737,-13014.88,0.00043835,60]
[333802802,1722521221781,-641.1,0.00043835,60]
[333802803,1722521221825,-677.28,0.00043835,60]
[333802804,1722521221869,-151.51836597,0.00043835,60]
[333802805,1722521221911,-500.0,0.00043835,60]
[333802806,1722521221953,-500.0,0.00043835,60]
[333802807,1722521221997,-500.0,0.00043835,60]
[333802808,1722521222037,-500.0,0.00043835,60]
[333802809,1722521222078,-500.0,0.00043835,60]
[333802810,1722521222117,-500.0,0.00043835,60]
[333802811,1722521222159,-500.0,0.00043835,60]
[333802812,1722521222201,-1815.47,0.00043835,60]
[333802813,1722521222251,-500.0,0.00043835,60]
[333802814,1722521222296,-500.0,0.00043835,60]
[333802815,1722521222341,-500.0,0.00043835,60]
[333802816,1722521222384,-500.0,0.00043835,60]
[333802817,1722521222428,-816.47,0.00043835,60]
[333802818,1722521222471,-539.41051797,0.00043835,60]
[333802819,1722521222515,-500.0,0.00043835,60]
[333802820,1722521222557,-500.0,0.00043835,60]
[333802821,1722521222600,-1299.43,0.00043835,60]
[333802822,1722521222643,-500.0,0.00043835,60]
[333802823,1722521222687,-500.0,0.00043835,60]
[333802824,1722521222741,-980.5,0.00043835,60]
[333802825,1722521222781,-500.0,0.00043835,60]
[333802826,1722521222821,-1991.93,0.00043835,60]
[333802827,1722521222861,-2645.07,0.00043835,60]
[333802828,1722521222899,-500.0,0.00043835,60]
[333802829,1722521222937,-500.0,0.00043835,60]
[333802830,1722521222978,-500.0,0.00043835,60]
[333802831,1722521223016,-589.0,0.00043835,60]
[333802832,1722521223056,-1156.53,0.00043835,60]
[333802833,1722521223096,-2881.02,0.00043835,60]
[333802834,1722521223137,-805.13,0.00043835,60]
[333802835,1722521223180,-500.0,0.00043835,60]
[333802836,1722521223229,-603.53,0.00043835,60]
[333802837,1722521223276,-500.0,0.00043835,60]
[333802838,1722521223322,-2794.54,0.00043835,60]
[333802839,1722521223367,-500.0,0.00043835,60]
[333802840,1722521223413,-500.0,0.00043835,60]
[333802841,1722521223461,-500.0,0.00043835,60]
[333802842,1722521223514,-500.0,0.00043835,60]
[333802843,1722521223560,-500.0,0.00043835,60]
[333802844,1722521223617,-748.71,0.00043835,60]
[333802845,1722521223671,-2312.29,0.00043835,60]
[333802846,1722521223727,-500.0,0.00043835,60]
[333802847,1722521223780,-500.0,0.00043835,60]
[333802848,1722521223825,-831.77,0.00043835,60]
[333802849,1722521223871,-500.0,0.00043835,60]
[333802850,1722521223919,-723.34,0.00043835,60]
[333802851,1722521223966,-500.0,0.00043835,60]
[333802852,1722521224019,-500.0,0.00043835,60]
[333802853,1722521224068,-3056.32,0.00043835,60]
[333802854,1722521224115,-500.0,0.00043835,60]
[333802855,1722521224162,-500.0,0.00043835,30]
[333802856,1722521224209,-3127.13,0.00043835,60]
[333802857,1722521224257,-1102.37,0.00043835,60]
[333802858,1722521224302,-1794.26,0.00043835,60]
[333802859,1722521224346,-500.0,0.00043835,60]
[333802860,1722521224392,-500.0,0.00043835,60]
[333802861,1722521224438,-500.0,0.00043835,60]
[333802862,1722521224488,-500.0,0.00043835,60]
[333802863,1722521224534,-500.0,0.00043835,60]
[333802865,1722521224579,-500.0,0.00043835,60]
[333802866,1722521224624,-692.65,0.00043835,60]
[333802867,1722521224668,-1202.89,0.00043835,60]
[333802868,1722521224712,-654.17,0.00043835,60]
[333802869,1722521224762,-3681.41,0.00043835,60]
[333802870,1722521224809,-500.0,0.00043835,60]
[333802871,1722521224853,-3524.85,0.00043835,60]
[333802872,1722521224897,-303.62574657,0.00043835,60]
[333802873,1722521224942,-2770.7,0.00043835,60]
[333802874,1722521224987,-500.0,0.00043835,60]
[333802875,1722521225030,-500.0,0.00043835,60]
[333802876,1722521225075,-944.19,0.00043835,60]
[333802877,1722521225118,-500.0,0.00043835,60]
[333802878,1722521225161,-586.98,0.00043835,60]
[333802879,1722521225208,-5121.54,0.00043835,60]
[333802880,1722521225256,-500.0,0.00043835,60]
[333802881,1722521225300,-655.09,0.00043835,60]
[333802882,1722521225345,-523.33,0.00043835,60]
[333802883,1722521225389,-500.0,0.00043835,60]
[333802884,1722521225433,-527.35,0.00043835,60]
[333802885,1722521225476,-500.0,0.00043835,60]
[333802886,1722521225519,-500.0,0.00043835,60]
[333802887,1722521225562,-500.0,0.00043835,60]
[333802888,1722521225604,-500.0,0.00043835,60]
[333802889,1722521225647,-500.0,0.00043835,60]
[333802890,1722521225688,-500.0,0.00043835,60]
[333802891,1722521225733,-938.14,0.00043835,60]
[333802892,1722521225777,-500.0,0.00043835,60]
[333802893,1722521225823,-500.0,0.00043835,60]
[333802894,1722521225869,-500.0,0.00043835,60]
[333802895,1722521225915,-500.0,0.00043835,60]
[333802896,1722521226225,-782.54,0.00043835,60]
[333802897,1722521226270,-1142.86,0.00043835,60]
[333802898,1722521226315,-500.0,0.00043835,60]
[333802899,1722521226360,-2074.47,0.00043835,60]
[333802900,1722521226408,-500.0,0.00043835,60]
[333802901,1722521226455,-500.0,0.00043835,60]
[333802902,1722521226506,-500.0,0.00043835,60]
[333802903,1722521226550,-500.0,0.00043835,60]
[333802904,1722521226593,-500.0,0.00043835,60]
[333802905,1722521226636,-500.0,0.00043835,60]
[333802906,1722521226677,-500.0,0.00043835,60]
[333802907,1722521226721,-500.0,0.00043835,60]
[333802908,1722521226765,-574.0983992,0.00043835,60]
[333802909,1722521226808,-635.82,0.00043835,60]
[333802910,1722521226850,-500.0,0.00043835,60]
[333802911,1722521226892,-572.60288072,0.00043835,60]
[333802912,1722521226934,-818.67,0.00043835,60]
[333802913,1722521226979,-500.0,0.00043835,60]
[333802914,1722521227024,-500.0,0.00043835,60]
[333802915,1722521227070,-429.51,0.00043835,60]
[333802916,1722521227116,-500.0,0.00043835,60]
[333802917,1722521227162,-500.0,0.00043835,60]
[333802918,1722521227207,-500.0,0.00043835,60]
[333802919,1722521227251,-500.0,0.00043835,60]
[333802920,1722521227293,-500.0,0.00043835,60]
[333802921,1722521227341,-645.58,0.00043835,60]
[333802922,1722521227385,-500.0,0.00043835,60]
[333802923,1722521227432,-500.0,0.00043835,60]
[333802924,1722521227480,-500.0,0.00043835,60]
[333802925,1722521227531,-500.0,0.00043835,60]
[333802926,1722521227576,-2079.84,0.00043835,60]
[333802927,1722521227622,-500.0,0.00043835,60]
[333802928,1722521227668,-500.0,0.00043835,60]
[333802929,1722521227718,-967.9,0.00043835,60]
[333802930,1722521227769,-500.0,0.00043835,60]
[333802931,1722521227818,-991.82,0.00043835,60]
[333802932,1722521227864,-1364.0,0.00043835,60]
[333802933,1722521227911,-531.92430987,0.00043835,60]
[333802934,1722521227959,-387.02289021,0.00043835,60]
[333802935,1722521228006,-516.82351311,0.00043835,60]
[333802936,1722521228051,-500.0,0.00043835,60]
[333802937,1722521228097,-500.0,0.00043835,60]
[333802938,1722521228142,-700.07,0.00043835,60]
[333802939,1722521228188,-524.96987206,0.00043835,60]
[333802940,1722521228234,-500.0,0.00043835,60]
[333802941,1722521228279,-545.32331136,0.00043835,60]
[333802942,1722521228323,-538.89143279,0.00043835,60]
[333802943,1722521228372,-500.0,0.00043835,60]
[333802944,1722521228420,-622.74,0.00043835,60]
[333802945,1722521228473,-500.0,0.00043835,60]
[333802946,1722521228522,-500.0,0.00043835,60]
[333802947,1722521228570,-500.0,0.00043835,60]
[333802948,1722521228616,-500.95,0.00043835,60]
[333802949,1722521228660,-500.0,0.00043835,60]
[333802950,1722521228707,-500.0,0.00043835,60]
[333802951,1722521228753,-500.0,0.00043835,60]
[333802952,1722521228797,-500.0,0.00043835,60]
[333802953,1722521228842,-500.0,0.00043835,60]
[333802954,1722521228885,-500.0,0.00043835,60]
[333802955,1722521228927,-500.0,0.00043835,60]
[333802956,1722521228968,-500.0,0.00043835,60]
[333802957,1722521229014,-500.0,0.00043835,60]
[333802958,1722521229058,-500.0,0.00043835,60]
[333802959,1722521229100,-500.0,0.00043835,60]
[333802960,1722521229142,-500.0,0.00043835,60]
[333802961,1722521229186,-500.0,0.00043835,60]
[333802962,1722521229229,-500.0,0.00043835,60]
[333802963,1722521229272,-500.0,0.00043835,60]
[333802964,1722521229314,-500.0,0.00043835,60]
[333802965,1722521229356,-500.0,0.00043835,60]
[333802966,1722521229398,-500.0,0.00043835,60]
[333802967,1722521229440,-500.0,0.00043835,60]
[333802968,1722521229483,-500.0,0.00043835,60]
[333802969,1722521229525,-500.0,0.00043835,60]
[333802970,1722521229566,-501.78079823,0.00043835,60]
[333802971,1722521229607,-500.0,0.00043835,60]
[333802972,1722521229648,-500.0,0.00043835,60]
[333802973,1722521229689,-500.0,0.00043835,60]
[333802974,1722521229733,-342.37651294,0.00043835,60]
[333802975,1722521229778,-500.0,0.00043835,60]
[333802976,1722521229820,-500.0,0.00043835,60]
[333802977,1722521229860,-579.72,0.00043835,60]
[333802978,1722521229901,-624.46,0.00043835,60]
[333802979,1722521229942,-500.0,0.00043835,60]
[333802980,1722521229984,-500.0,0.00043835,60]
[333802981,1722521230026,-343.15,0.00043835,60]
[333802982,1722521230067,-500.0,0.00043835,60]
[333802983,1722521230110,-334.14,0.00043835,60]
[333802984,1722521230149,-551.15,0.00043835,60]
[333802985,1722521230189,-522.12,0.00043835,60]
[333802986,1722521230233,-500.0,0.00043835,60]
[333802987,1722521230275,-599.48,0.00043835,60]
[333802988,1722521230317,-500.0,0.00043835,60]
[333802989,1722521230362,-500.0,0.00043835,60]
[333802990,1722521230406,-565.42924443,0.00043835,60]
[333802991,1722521230451,-502.83982178,0.00043835,60]
[333802992,1722521230496,-302.55114643,0.00043835,60]
[333802993,1722521230539,-500.0,0.00043835,60]
[333802994,1722521230581,-500.0,0.00043835,60]
[333802995,1722521230621,-310.07389687,0.00043835,60]
[333802996,1722521230662,-500.0,0.00043835,60]
[333802997,1722521230706,-348.52111524,0.00043835,60]
[333802998,1722521230760,-502.58844937,0.00043835,60]
[333802999,1722521230801,-312.91656839,0.00043835,60]
[333803000,1722521231118,-412.14185051,0.00043835,60]
[333803001,1722521231160,-500.0,0.00043835,60]
[333803002,1722521231202,-518.99,0.00043835,60]
[333803003,1722521231246,-500.0,0.00043835,60]
[333803004,1722521231288,-500.0,0.00043835,60]
[333803005,1722521231330,-500.0,0.00043835,60]
[333803006,1722521231372,-254.53450933,0.00043835,60]
[333803007,1722521231412,-519.64740057,0.00043835,60]
[333803008,1722521231454,-500.0,0.00043835,60]
[333803009,1722521231496,-500.0,0.00043835,60]
[333803010,1722521231537,-500.0,0.00043835,60]
[333803011,1722521231579,-500.0,0.00043835,60]
[333803012,1722521231622,-500.0,0.00043835,60]
[333803013,1722521231664,-444.59836794,0.00043835,60]
[333803014,1722521231708,-500.0,0.00043835,60]
[333803015,1722521231757,-500.0,0.00043835,60]
[333803016,1722521231802,-640.01,0.00043835,60]
[333803017,1722521231844,-501.56902357,0.00043835,60]
[333803018,1722521231888,-500.0,0.00043835,60]
[333803019,1722521231934,-500.0,0.00043835,60]
[333803020,1722521231976,-309.19015109,0.00043835,60]
[333803021,1722521232017,-500.0,0.00043835,60]
[333803022,1722521232056,-503.97817144,0.00043835,60]
[333803023,1722521232097,-500.0,0.00043835,60]
[333803024,1722521232137,-609.14,0.00043835,60]
[333803025,1722521232178,-500.0,0.00043835,60]
[333803026,1722521232219,-500.0,0.00043835,60]
[333803027,1722521232267,-500.0,0.00043835,60]
[333803028,1722521232310,-416.65218062,0.00043835,60]
[333803029,1722521232352,-500.0,0.00043835,60]
[333803030,1722521232393,-500.0,0.00043835,60]
[333803031,1722521232435,-500.0,0.00043835,60]
[333803032,1722521232483,-500.0,0.00043835,60]
[333803033,1722521232525,-646.69419595,0.00043835,60]
[333803034,1722521232570,-500.0,0.00043835,60]
[333803035,1722521232614,-504.64516533,0.00043835,60]
[333803036,1722521232657,-500.0,0.00043835,60]
[333803037,1722521232701,-500.0,0.00043835,60]
[333803038,1722521232746,-500.0,0.00043835,60]
[333803039,1722521232789,-511.95175792,0.00043835,60]
[333803040,1722521232831,-500.0,0.00043835,60]
[333803041,1722521232875,-500.0,0.00043835,60]
[333803042,1722521232914,-500.0,0.00043835,60]
[333803043,1722521232956,-500.0,0.00043835,60]
[333803044,1722521232996,-500.0,0.00043835,60]
[333803045,1722521233035,-309.15079198,0.00043835,60]
[333803046,1722521233075,-500.0,0.00043835,60]
[333803047,1722521233115,-500.0,0.00043835,60]
[333803048,1722521233156,-279.35194673,0.00043835,60]
[333803049,1722521233196,-256.25,0.00043835,60]
[333803050,1722521233237,-500.0,0.00043835,60]
[333803051,1722521233277,-366.45056189,0.00043835,60]
[333803052,1722521233318,-500.0,0.00043835,60]
[333803053,1722521233359,-500.0,0.00043835,60]
[333803054,1722521233401,-500.0,0.00043835,60]
[333803055,1722521233443,-500.0,0.00043835,60]
[333803056,1722521233488,-500.0,0.00043835,60]
[333803057,1722521233532,-507.39767328,0.00043835,60]
[333803058,1722521233575,-500.0,0.00043835,60]
[333803059,1722521233618,-514.90403715,0.00043835,60]
[333803060,1722521233659,-227.8721084,0.00043835,60]
[333803061,1722521233700,-500.0,0.00043835,60]
[333803062,1722521233746,-500.0,0.00043835,60]
[333803063,1722521233787,-500.0,0.00043835,60]
[333803064,1722521233831,-522.79,0.00043835,60]
[333803065,1722521233875,-500.0,0.00043835,60]
[333803066,1722521233917,-1603.82,0.00043835,60]
[333803067,1722521233961,-500.0,0.00043835,60]
[333803068,1722521234007,-500.0,0.00043835,60]
[333803069,1722521234052,-500.0,0.00043835,60]
[333803070,1722521234093,-1162.18,0.00043835,60]
[333803071,1722521234133,-546.16832706,0.00043835,60]
[333803072,1722521234175,-1512.19,0.00043835,60]
[333803073,1722521234217,-500.0,0.00043835,60]
[333803074,1722521234261,-623.37,0.00043835,60]
[333803075,1722521234302,-500.0,0.00043835,60]
[333803076,1722521234343,-500.0,0.00043835,60]
[333803077,1722521234387,-500.0,0.00043835,60]
[333803078,1722521234429,-500.0,0.00043835,60]
[333803079,1722521234478,-500.0,0.00043835,60]
[333803080,1722521234521,-500.0,0.00043835,60]
[333803081,1722521234563,-505.95493701,0.00043835,60]
[333803082,1722521234607,-500.0,0.00043835,60]
[333803083,1722521234649,-500.0,0.00043835,60]
[333803084,1722521234691,-500.0,0.00043835,60]
[333803085,1722521234735,-500.0,0.00043835,60]
[333803086,1722521234778,-500.0,0.00043835,60]